fUST/lending_fUST_20250324
["ID","MTS","AMOUNT","RATE_DAILY","PERIOD"]
[356593672,1742754652266,-640.38,0.00014246,2]
[356593673,1742754652275,-500.0,0.00014246,2]
[356593674,1742754652284,-4387.68,0.00014246,2]
[356593675,1742754652294,-500.0,0.00014246,2]
[356593676,1742754652303,-541.52,0.00014246,2]
[356593677,1742754652317,-602.86,0.00014246,2]
[356593678,1742754652327,-500.0,0.00014246,2]
[356593679,1742754652336,-500.0,0.00014246,2]
[356593680,1742754652346,-656.58,0.00014246,2]
[356593681,1742754652356,-728.09,0.00014246,2]
[356593682,1742754652366,-214.10150188,0.00014246,2]
[356593683,1742754652396,-2101.32849812,0.00014246,2]
[356593684,1742754652405,-500.0,0.00014246,2]
[356593685,1742754652414,-500.0,0.00014246,2]
[356593686,1742754652423,-500.0,0.00014246,2]
[356593687,1742754652433,-500.0,0.00014246,2]
[356593688,1742754652443,-500.0,0.00014246,2]
[356593689,1742754652453,-500.0,0.00014246,2]
[356593690,1742754652463,-500.0,0.00014246,2]
[356593691,1742754652472,-500.0,0.00014246,2]
[356593692,1742754652482,-500.0,0.00014246,2]
[356593693,1742754652492,-500.0,0.00014246,2]
[356593694,1742754652502,-700.98,0.00014246,2]
[356593695,1742754652511,-316.09150188,0.00014246,2]
[356593709,1742755626087,-300.0,0.00012512,2]
[356593710,1742755626110,-500.0,0.00012513,2]
[356593711,1742755626132,-500.0,0.00012513,2]
[356593712,1742755626155,-352.30935206,0.00012513,2]
[356593713,1742755633277,-147.69064794,0.00012513,2]
[356593714,1742755633297,-634.3035778,0.00012513,2]
[356593715,1742755633318,-500.0,0.00012513,2]
[356593716,1742755633338,-500.0,0.00012513,2]
[356593717,1742755633359,-500.0,0.00012513,2]
[356593718,1742755633378,-24429.9550849,0.00012514,2]
[356593722,1742755745567,4877.9222302,0.00012012,2]
[356593723,1742755747108,-470.0449151,0.00012514,2]
[356593734,1742755832257,-500.0,0.00012798,2]
[356593735,1742755832266,-300.0,0.00012897,2]
[356593736,1742755832277,-408.08999457,0.00012897,2]
[356593737,1742755832287,-291.22769347,0.00012897,2]
[356593738,1742755832298,-500.0,0.00012897,2]
[356593739,1742755832308,-292.70039753,0.00012897,2]
[356593740,1742755832318,-7666.89950506,0.00012898,2]
[356593741,1742755832333,-314333.10049494,0.00012898,2]
[356593742,1742755832344,-1057.38053491,0.00013256,2]
[356593743,1742755832354,-150.0,0.00013456,2]
[356593744,1742755832363,-541.0,0.00013456,2]
[356593745,1742755832373,-2264.0,0.00013456,2]
[356593746,1742755832382,-1915.0,0.00013456,2]
[356593747,1742755832392,-152.0,0.00013478,2]
[356593750,1742755832401,-4000.0,0.00013598,2]
[356593753,1742755832410,-500.0,0.00013673,2]
[356593755,1742755832419,-552.33168527,0.00013673,2]
[356593756,1742755832428,-500.0,0.00013673,2]
[356593757,1742755832437,-500.0,0.00013673,2]
[356593758,1742755832446,-500.0,0.00013673,2]
[356593759,1742755832455,-500.0,0.00013673,2]
[356593760,1742755832465,-500.0,0.00013673,2]
[356593761,1742755832474,-500.0,0.00013673,2]
[356593762,1742755832483,-500.0,0.00013673,2]
[356593763,1742755832493,-500.0,0.00013673,2]
[356593764,1742755832502,-500.0,0.00013673,2]
[356593765,1742755832511,-500.0,0.00013673,2]
[356593766,1742755832520,-151.0,0.0001369,2]
[356593767,1742755832529,-302.0,0.0001369,2]
[356593768,1742755832538,-500.0,0.00013698,2]
[356593769,1742755832547,-500.0,0.00013698,2]
[356593770,1742755832556,-588.53,0.00013698,2]
[356593771,1742755832565,-500.0,0.00013698,2]
[356593772,1742755832574,-500.0,0.00013698,2]
[356593773,1742755832584,-500.0,0.00013698,2]
[356593774,1742755832593,-500.0,0.00013698,2]
[356593775,1742755832602,-500.0,0.00013698,2]
[356593776,1742755832613,-500.0,0.00013698,2]
[356593777,1742755832623,-500.0,0.00013698,2]
[356593778,1742755832633,-871.46,0.00013698,2]
[356593779,1742755832642,-500.0,0.00013698,2]
[356593780,1742755832651,-500.0,0.00013698,2]
[356593781,1742755832660,-500.0,0.00013698,2]
[356593782,1742755832669,-500.0,0.00013698,2]
[356593783,1742755832678,-526.75,0.00013698,2]
[356593784,1742755832687,-500.0,0.00013698,2]
[356593785,1742755832697,-500.0,0.00013698,2]
[356593786,1742755832706,-560.33,0.00013698,2]
[356593787,1742755832716,-500.0,0.00013698,2]
[356593788,1742755832725,-500.0,0.00013698,2]
[356593789,1742755832734,-574.8,0.00013698,2]
[356593790,1742755832743,-500.0,0.00013698,2]
[356593791,1742755832752,-500.0,0.00013698,2]
[356593792,1742755832761,-500.0,0.00013698,2]
[356593793,1742755832771,-1155.72,0.00013698,2]
[356593794,1742755832780,-500.0,0.00013698,2]
[356593795,1742755832790,-309.49336332,0.00013698,2]
[356593796,1742755832802,-1142.61,0.00013698,2]
[356593797,1742755832811,-605.94,0.00013698,2]
[356593798,1742755832820,-500.0,0.00013698,2]
[356593799,1742755832829,-1484.68,0.00013698,2]
[356593800,1742755832838,-500.0,0.00013698,2]
[356593801,1742755832858,-500.0,0.00013698,2]
[356593802,1742755832868,-500.0,0.00013698,2]
[356593803,1742755832877,-500.0,0.00013698,2]
[356593804,1742755832887,-648.54,0.00013698,2]
[356593805,1742755832898,-698.83,0.00013698,2]
[356593806,1742755832907,-552.48,0.00013698,2]
[356593807,1742755832917,-500.0,0.00013698,2]
[356593808,1742755832926,-500.0,0.00013698,2]
[356593809,1742755832936,-500.0,0.00013698,2]
[356593810,1742755832946,-1063.95,0.00013698,2]
[356593811,1742755832956,-782.08,0.00013698,2]
[356593812,1742755832966,-500.0,0.00013698,2]
[356593813,1742755832975,-500.0,0.00013698,2]
[356593814,1742755832985,-500.0,0.00013698,2]
[356593815,1742755833251,-565.59,0.00013698,2]
[356593816,1742755833261,-500.0,0.00013698,2]
[356593817,1742755833271,-500.0,0.00013698,2]
[356593818,1742755833281,-501.11,0.00013698,2]
[356593819,1742755833290,-500.0,0.00013698,2]
[356593820,1742755833300,-500.0,0.00013698,2]
[356593821,1742755833309,-916.21,0.00013698,2]
[356593822,1742755833319,-500.0,0.00013698,2]
[356593823,1742755833330,-500.0,0.00013698,2]
[356593824,1742755833339,-816.65,0.00013698,2]
[356593825,1742755833349,-500.0,0.00013698,2]
[356593826,1742755833358,-500.0,0.00013698,2]
[356593827,1742755833367,-500.0,0.00013698,2]
[356593828,1742755833381,-633.07,0.00013698,2]
[356593829,1742755833391,-500.0,0.00013698,2]
[356593830,1742755833401,-525.06,0.00013698,2]
[356593831,1742755833411,-921.99,0.00013698,2]
[356593832,1742755833421,-500.0,0.00013698,2]
[356593833,1742755833430,-500.0,0.00013698,2]
[356593834,1742755833440,-500.0,0.00013698,2]
[356593835,1742755833449,-1471.71,0.00013698,2]
[356593836,1742755833458,-500.0,0.00013698,2]
[356593837,1742755833468,-500.0,0.00013698,2]
[356593838,1742755833478,-787.18,0.00013698,2]
[356593839,1742755833487,-500.0,0.00013698,2]
[356593840,1742755833498,-500.0,0.00013698,2]
[356593841,1742755833508,-500.0,0.00013698,2]
[356593842,1742755833517,-500.0,0.00013698,2]
[356593843,1742755833527,-1714.85,0.00013698,2]
[356593844,1742755833537,-500.0,0.00013698,2]
[356593845,1742755833546,-570.37,0.00013698,2]
[356593846,1742755833556,-980.78,0.00013698,2]
[356593847,1742755833566,-500.0,0.00013698,2]
[356593848,1742755833576,-3839.22,0.00013698,2]
[356593849,1742755833586,-500.0,0.00013698,2]
[356593850,1742755833596,-2026.0,0.00013698,2]
[356593851,1742755833606,-500.0,0.00013698,2]
[356593852,1742755833616,-500.0,0.00013698,2]
[356593853,1742755833626,-505.83,0.00013698,2]
[356593854,1742755833635,-500.0,0.00013698,2]
[356593855,1742755833645,-500.0,0.00013698,2]
[356593856,1742755833655,-527.51,0.00013698,2]
[356593857,1742755833664,-574.5,0.00013698,2]
[356593858,1742755833674,-500.0,0.00013698,2]
[356593859,1742755833683,-709.28,0.00013698,2]
[356593860,1742755833693,-500.0,0.00013698,2]
[356593861,1742755833704,-637.08,0.00013698,2]
[356593862,1742755833714,-500.0,0.00013698,2]
[356593863,1742755833723,-500.0,0.00013698,2]
[356593864,1742755833733,-500.0,0.00013698,2]
[356593865,1742755833742,-613.36,0.00013698,2]
[356593866,1742755833752,-500.0,0.00013698,2]
[356593867,1742755833762,-500.0,0.00013698,2]
[356593868,1742755833771,-500.0,0.00013698,2]
[356593869,1742755833781,-500.0,0.00013698,2]
[356593870,1742755833793,-500.0,0.00013698,2]
[356593871,1742755833805,-500.0,0.00013698,2]
[356593872,1742755833815,-500.0,0.00013698,2]
[356593873,1742755833827,-500.0,0.00013698,2]
[356593874,1742755833838,-636.53,0.00013698,2]
[356593875,1742755833847,-607.82,0.00013698,2]
[356593876,1742755833857,-308.5781338,0.00013698,2]
[356593884,1742755838276,-6013.74893655,0.00012798,2]
[356593885,1742755838329,-35378.13247513,0.00012798,2]
[356593886,1742755838385,-4080.50170302,0.00012798,2]
[356593896,1742755840450,-1018.4520496,0.00012798,2]
[356593908,1742755843419,-11678.39766723,0.00012798,2]
[356593909,1742755843430,-1640.27198796,0.00012798,2]
[356593910,1742755843442,-2712.5024788,0.00012798,2]
[356593911,1742755843453,-374.99858521,0.00012798,2]
[356593912,1742755843464,-2309.2020512,0.00012798,2]
[356593913,1742755843475,-316.425,0.00012798,2]
[356593928,1742755846355,-2967.99436785,0.00012798,2]
[356593929,1742755846366,-2145.98352522,0.00012798,2]
[356593930,1742755846377,-35350.00795443,0.00012798,2]
[356593960,1742756828124,-300.0,0.00012697,2]
[356593961,1742756828146,-922.368831,0.00012698,2]
[356593962,1742756831262,-4077.631169,0.00012698,2]
[356593963,1742756831282,-500.0,0.00012698,2]
[356593964,1742756831304,-500.0,0.00012796,2]
[356593965,1742756831324,-489.52238163,0.00012797,2]
[356593966,1742756831345,-469.50071483,0.00012797,2]
[356593967,1742756831364,-203.85938543,0.00012797,2]
[356593968,1742756831385,-500.0,0.00012797,2]
[356593969,1742756831405,-500.0,0.00012797,2]
[356593970,1742756831426,-500.0,0.00012797,2]
[356593971,1742756831446,-500.0,0.00012797,2]
[356593972,1742756831467,-500.0,0.00012797,2]
[356593973,1742756831486,-19515.54277811,0.00012798,2]
[356593979,1742757032670,-909.72071675,0.00012698,2]
[356593980,1742757038392,-206.89141123,0.00012698,2]
[356593981,1742757038402,-300.0,0.00012797,2]
[356593982,1742757038412,-571.21654377,0.00012798,2]
[356594080,1742757040750,-1932.10000004,0.00012798,2]
[356594110,1742757043513,-397.08917749,0.00012798,2]
[356594120,1742757046591,-3139.56182544,0.00012798,2]
[356594121,1742757046612,-28960.14420067,0.00012798,2]
[356594135,1742757468777,7589.406194,0.00011849,2]
[356594143,1742757571709,186.4270124,0.00011944,2]
[356594150,1742757839417,455.7254616,0.00011854,2]
[356594154,1742757950089,-1303.69434071,0.00012198,2]
[356594155,1742757950117,-300.0,0.00012696,2]
[356594156,1742757950144,-485.36723694,0.00012697,2]
[356594157,1742757950168,-422.86034121,0.00012697,2]
[356594158,1742757950196,-500.0,0.00012697,2]
[356594159,1742757950223,-500.0,0.00012697,2]
[356594160,1742757950249,-426.7399974,0.00012697,2]
[356594161,1742757950275,-174.89571196,0.00012697,2]
[356594162,1742757950301,-574.55982951,0.00012697,2]
[356594163,1742757950325,-83906.44043712,0.00012698,2]
[356594164,1742757950349,-476.7493344,0.000128,2]
[356594165,1742757950375,-685.36028732,0.000129,2]
[356594166,1742757950406,-172.61672,0.0001292,2]
[356594167,1742757950430,-476.74933438,0.00013,2]
[356594168,1742757950457,-476.74933438,0.00013199,2]
[356594169,1742757950484,-162.707923,0.00013292,2]
[356594170,1742757950507,-150.0,0.00013385,2]
[356594171,1742757950528,-541.0,0.00013385,2]
[356594172,1742757950551,-1915.0,0.00013385,2]
[356594173,1742757950576,-2264.0,0.00013385,2]
[356594174,1742757950602,-400.0,0.00013385,2]
[356594175,1742757950624,-400.0,0.00013385,2]
[356594176,1742757950648,-162.707923,0.00013393,2]
[356594177,1742757950672,-476.74933438,0.00013399,2]
[356594178,1742757950697,-150.0,0.00013456,2]
[356594179,1742757950732,-162.707923,0.00013494,2]
[356594180,1742757950762,-152.0,0.00013559,2]
[356594181,1742757950799,-476.74933438,0.00013598,2]
[356594182,1742757950824,-500.0,0.00013673,2]
[356594183,1742757950852,-500.0,0.00013673,2]
[356594184,1742757950879,-500.0,0.00013673,2]
[356594185,1742757950907,-500.0,0.00013673,2]
[356594186,1742757950933,-500.0,0.00013673,2]
[356594187,1742757950957,-500.0,0.00013673,2]
[356594188,1742757950982,-500.0,0.00013673,2]
[356594189,1742757951007,-500.0,0.00013673,2]
[356594190,1742757951031,-500.0,0.00013673,2]
[356594191,1742757951056,-500.0,0.00013673,2]
[356594192,1742757951080,-500.0,0.00013673,2]
[356594193,1742757951104,-267.64594351,0.0001369,2]
[356594194,1742757951127,-956.75886882,0.0001369,2]
[356594195,1742757951150,-600.0,0.0001369,2]
[356594196,1742757951174,-360.80015167,0.00013698,2]
[356594197,1742757951196,-500.0,0.00013698,2]
[356594198,1742757951220,-577.02116365,0.00013698,2]
[356594199,1742757951243,-782.62,0.00013698,2]
[356594200,1742757951267,-500.0,0.00013698,2]
[356594201,1742757951291,-500.0,0.00013698,2]
[356594202,1742757951316,-500.0,0.00013698,2]
[356594203,1742757951339,-500.0,0.00013698,2]
[356594204,1742757951363,-500.0,0.00013698,2]
[356594205,1742757951388,-500.0,0.00013698,2]
[356594206,1742757951412,-500.0,0.00013698,2]
[356594207,1742757951437,-404.07135336,0.00013698,2]
[356594208,1742757951462,-500.0,0.00013698,2]
[356594209,1742757951486,-500.0,0.00013698,2]
[356594210,1742757951510,-679.73,0.00013698,2]
[356594211,1742757951533,-500.0,0.00013698,2]
[356594212,1742757951558,-500.0,0.00013698,2]
[356594213,1742757951583,-500.0,0.00013698,2]
[356594214,1742757951607,-500.0,0.00013698,2]
[356594215,1742757951630,-500.0,0.00013698,2]
[356594216,1742757951655,-500.0,0.00013698,2]
[356594217,1742757951678,-500.0,0.00013698,2]
[356594218,1742757951702,-698.54,0.00013698,2]
[356594219,1742757951726,-500.0,0.00013698,2]
[356594220,1742757951750,-610.0,0.00013698,2]
[356594221,1742757951773,-201.38766199,0.00013698,2]
[356594222,1742757951798,-897.46,0.00013698,2]
[356594223,1742757951821,-944.63,0.00013698,2]
[356594224,1742757951846,-500.0,0.00013698,2]
[356594225,1742757951871,-500.0,0.00013698,2]
[356594226,1742757951896,-608.02,0.00013698,2]
[356594227,1742757951922,-613.68,0.00013698,2]
[356594228,1742757951945,-500.0,0.00013698,2]
[356594229,1742757951969,-500.0,0.00013698,2]
[356594230,1742757951992,-560.81,0.00013698,2]
[356594231,1742757952016,-500.0,0.00013698,2]
[356594232,1742757952040,-500.0,0.00013698,2]
[356594233,1742757952065,-500.0,0.00013698,2]
[356594234,1742757952086,-500.0,0.00013698,2]
[356594235,1742757952107,-515.04,0.00013698,2]
[356594236,1742757952128,-500.0,0.00013698,2]
[356594237,1742757952150,-545.33,0.00013698,2]
[356594238,1742757952171,-770.28,0.00013698,2]
[356594239,1742757952192,-500.0,0.00013698,2]
[356594240,1742757952214,-500.0,0.00013698,2]
[356594241,1742757952235,-500.0,0.00013698,2]
[356594242,1742757952549,-500.0,0.00013698,2]
[356594243,1742757952570,-500.0,0.00013698,2]
[356594244,1742757952591,-500.0,0.00013698,2]
[356594245,1742757952612,-151.32107691,0.00013698,2]
[356594251,1742758032088,-1854.2796004,0.0001271,2]
[356594252,1742758032110,-300.0,0.00013284,2]
[356594253,1742758032130,-462.18406423,0.00013284,2]
[356594254,1742758032151,-5469.05011495,0.00013285,2]
[356594255,1742758043076,-6709.58445621,0.00013285,2]
[356594256,1742758047097,-491.16409857,0.00013285,2]
[356594257,1742758051120,-21292.884918,0.00013285,2]
[356594320,1742758232700,-300.0,0.00013284,2]
[356594321,1742758232711,-8.38638213,0.00013285,2]
[356594322,1742758232723,-537.21595774,0.00013285,2]
[356594323,1742758232807,-2054.19753243,0.00013285,2]
[356594324,1742758232819,-34771.65324831,0.00013285,2]
[356594336,1742758238739,-6121.74044699,0.00013285,2]
[356594337,1742758239539,-14671.283507,0.00013285,2]
[356594468,1742758243735,-500.0,0.00013285,2]
[356594469,1742758243791,-11356.20018936,0.00013285,2]
[356594487,1742758246650,-898.39041995,0.00013285,2]
[356594488,1742758246669,-2687.68941199,0.00013285,2]
[356594489,1742758246681,-463.3,0.00013285,2]
[356594490,1742758246702,-2365.876102,0.00013285,2]
[356594491,1742758246715,-8496.08970378,0.00013285,2]
[356594501,1742758692609,-300.0,0.00017,120]
[356594519,1742759227133,-500.0,0.00012581,2]
[356594520,1742759227155,-449.11640986,0.00012581,2]
[356594521,1742759250085,-50.88359014,0.00012581,2]
[356594522,1742759250106,-192.47911926,0.00012581,2]
[356594523,1742759250128,-500.0,0.00012581,2]
[356594524,1742759250149,-500.0,0.00012581,2]
[356594525,1742759250175,-500.0,0.00012581,2]
[356594526,1742759250195,-345.38263021,0.00012581,2]
[356594527,1742759250215,-500.0,0.00012581,2]
[356594528,1742759250237,-500.0,0.00012581,2]
[356594529,1742759250258,-96.72320704,0.00012581,2]
[356594577,1742759431828,-300.0,0.0001258,2]
[356594578,1742759431838,-403.27679296,0.00012581,2]
[356594579,1742759431847,-500.0,0.00012581,2]
[356594580,1742759431856,-500.0,0.00012581,2]
[356594581,1742759431866,-500.0,0.00012581,2]
[356594582,1742759431875,-500.0,0.00012581,2]
[356594583,1742759431884,-500.0,0.00012581,2]
[356594584,1742759431894,-500.0,0.00012581,2]
[356594585,1742759431903,-500.0,0.00012581,2]
[356594586,1742759431912,-352.30935206,0.00012581,2]
[356594587,1742759431921,-10000.0,0.00012582,2]
[356594588,1742759431931,-400.0,0.00013464,2]
[356594589,1742759431940,-400.0,0.00013464,2]
[356594590,1742759431950,-150.0,0.00013464,2]
[356594591,1742759431959,-541.0,0.00013464,2]
[356594592,1742759431969,-1915.0,0.00013464,2]
[356594593,1742759431979,-2264.0,0.00013464,2]
[356594594,1742759431988,-702.18618189,0.00013573,2]
[356594595,1742759431997,-665.36405488,0.00013573,2]
[356594596,1742759432007,-702.18618189,0.00013579,2]
[356594597,1742759432015,-702.18618189,0.00013586,2]
[356594598,1742759432025,-702.18618189,0.00013592,2]
[356594599,1742759432035,-541.93418522,0.00013597,2]
[356594600,1742759432044,-702.18618189,0.00013598,2]
[356594601,1742759432053,-4863.26196922,0.00013598,2]
[356594623,1742759437665,-1000.0,0.00013598,2]
[356594625,1742759437677,-20331.59731683,0.00013598,2]
[356594627,1742759437688,-5170.51661026,0.00013598,2]
[356594655,1742759440015,-36192.49012501,0.00013598,2]
[356594657,1742759440024,-500.0,0.00013673,2]
[356594659,1742759440034,-281.01140883,0.00013673,2]
[356594661,1742759440043,-500.0,0.00013673,2]
[356594663,1742759440052,-500.0,0.00013673,2]
[356594665,1742759440061,-500.0,0.00013673,2]
[356594667,1742759440071,-500.0,0.00013673,2]
[356594669,1742759440080,-500.0,0.00013673,2]
[356594671,1742759440090,-500.0,0.00013673,2]
[356594673,1742759440099,-500.0,0.00013673,2]
[356594675,1742759440108,-500.0,0.00013673,2]
[356594677,1742759440118,-500.0,0.00013673,2]
[356594679,1742759440127,-156.587,0.0001369,2]
[356594680,1742759440136,-600.0,0.0001369,2]
[356594683,1742759440146,-500.0,0.00013698,2]
[356594684,1742759440156,-500.0,0.00013698,2]
[356594687,1742759440165,-500.0,0.00013698,2]
[356594689,1742759440175,-500.0,0.00013698,2]
[356594690,1742759440184,-564.01,0.00013698,2]
[356594693,1742759440194,-500.0,0.00013698,2]
[356594695,1742759440203,-500.0,0.00013698,2]
[356594697,1742759440214,-500.0,0.00013698,2]
[356594698,1742759440223,-500.0,0.00013698,2]
[356594699,1742759440232,-500.0,0.00013698,2]
[356594700,1742759440242,-500.0,0.00013698,2]
[356594701,1742759440251,-500.0,0.00013698,2]
[356594702,1742759440260,-835.15,0.00013698,2]
[356594703,1742759440270,-500.0,0.00013698,2]
[356594704,1742759440279,-500.0,0.00013698,2]
[356594705,1742759440289,-338.92498335,0.00013698,2]
[356594706,1742759440299,-504.81,0.00013698,2]
[356594707,1742759440308,-500.0,0.00013698,2]
[356594708,1742759440317,-500.0,0.00013698,2]
[356594709,1742759440327,-536.99,0.00013698,2]
[356594710,1742759440336,-500.0,0.00013698,2]
[356594711,1742759440346,-500.0,0.00013698,2]
[356594712,1742759440356,-500.0,0.00013698,2]
[356594713,1742759440365,-550.85,0.00013698,2]
[356594714,1742759440375,-500.0,0.00013698,2]
[356594715,1742759440385,-500.0,0.00013698,2]
[356594716,1742759440395,-580.69,0.00013698,2]
[356594717,1742759440404,-500.0,0.00013698,2]
[356594718,1742759440414,-500.0,0.00013698,2]
[356594719,1742759440423,-500.0,0.00013698,2]
[356594720,1742759440432,-684.8,0.00013698,2]
[356594721,1742759440442,-1095.01,0.00013698,2]
[356594722,1742759440451,-500.0,0.00013698,2]
[356594723,1742759440460,-1422.81,0.00013698,2]
[356594724,1742759440469,-500.0,0.00013698,2]
[356594725,1742759440479,-529.46,0.00013698,2]
[356594726,1742759440488,-595.62,0.00013698,2]
[356594727,1742759440498,-500.0,0.00013698,2]
[356594728,1742759440507,-705.95,0.00013698,2]
[356594729,1742759440516,-500.0,0.00013698,2]
[356594730,1742759440526,-500.0,0.00013698,2]
[356594731,1742759440535,-1299.6,0.00013698,2]
[356594732,1742759440544,-500.0,0.00013698,2]
[356594733,1742759440557,-500.0,0.00013698,2]
[356594734,1742759440566,-790.04,0.00013698,2]
[356594735,1742759440576,-500.0,0.00013698,2]
[356594736,1742759440585,-769.66,0.00013698,2]
[356594737,1742759440596,-500.0,0.00013698,2]
[356594738,1742759440605,-500.0,0.00013698,2]
[356594739,1742759440615,-878.03,0.00013698,2]
[356594740,1742759440624,-500.0,0.00013698,2]
[356594741,1742759440635,-500.0,0.00013698,2]
[356594742,1742759440645,-230.37071245,0.00013698,2]
[356594743,1742759440654,-500.0,0.00013698,2]
[356594744,1742759440663,-225.76906146,0.00013698,2]
[356594752,1742759442829,-524.24093854,0.00013698,2]
[356594753,1742759442839,-503.19,0.00013698,2]
[356594754,1742759442849,-500.0,0.00013698,2]
[356594755,1742759442859,-500.0,0.00013698,2]
[356594756,1742759442868,-606.69,0.00013698,2]
[356594757,1742759442877,-500.0,0.00013698,2]
[356594758,1742759442887,-239.4649992,0.00013698,2]
[356594766,1742759445799,-260.5350008,0.00013698,2]
[356594767,1742759445809,-500.0,0.00013698,2]
[356594768,1742759445819,-500.0,0.00013698,2]
[356594769,1742759445828,-500.0,0.00013698,2]
[356594770,1742759445838,-285.06499921,0.00013698,2]
[356594771,1742759445851,-214.93500079,0.00013698,2]
[356594772,1742759445860,-500.0,0.00013698,2]
[356594773,1742759445871,-883.57,0.00013698,2]
[356594774,1742759445880,-500.0,0.00013698,2]
[356594775,1742759445890,-500.0,0.00013698,2]
[356594776,1742759445899,-1410.38,0.00013698,2]
[356594777,1742759445909,-939.92,0.00013698,2]
[356594778,1742759445919,-500.0,0.00013698,2]
[356594779,1742759445928,-647.74742561,0.00013698,2]
[356594780,1742759445938,-327.92803642,0.00013698,2]
[356594781,1742759445950,-426.45196358,0.00013698,2]
[356594782,1742759445959,-546.6,0.00013698,2]
[356594783,1742759445969,-333.46256573,0.00013698,2]
[356594792,1742760426138,-922.368831,0.00012518,2]
[356594793,1742760426159,-300.0,0.00012616,2]
[356594794,1742760426181,-500.0,0.00012617,2]
[356594795,1742760426208,-500.0,0.00012617,2]
[356594796,1742760426229,-500.0,0.00012617,2]
[356594797,1742760426250,-500.0,0.00012617,2]
[356594798,1742760426272,-323.06390931,0.00012617,2]
[356594799,1742760426295,-500.0,0.00012617,2]
[356594800,1742760426317,-500.0,0.00012617,2]
[356594801,1742760426338,-500.0,0.00012617,2]
[356594802,1742760426359,-500.0,0.00012617,2]
[356594803,1742760426380,-1122.08773939,0.00012618,2]
[356594808,1742760439084,-2382.09978852,0.00012618,2]
[356594882,1742760632047,-550.0,0.00012618,2]
[356594885,1742760637913,-16645.76655109,0.00012618,2]
[356594886,1742760637923,-582.19354802,0.00013405,2]
[356594887,1742760637933,-565.8709145,0.00013497,2]
[356594888,1742760637944,-103929.36535927,0.00013498,2]
[356594889,1742760637955,-539.84621936,0.00013498,2]
[356594890,1742760637967,-991.16467886,0.00013498,2]
[356594891,1742760637978,-44280.48867728,0.00013498,2]
[356594892,1742760637990,-18280.54511464,0.00013498,2]
[356594893,1742760638005,-20157.44980035,0.00013498,2]
[356594894,1742760638017,-797.72623993,0.00013498,2]
[356594895,1742760638029,-677.41019514,0.00013498,2]
[356594896,1742760638041,-7086.70441233,0.00013498,2]
[356594897,1742760638050,-150.0,0.00013505,2]
[356594898,1742760638060,-541.0,0.00013505,2]
[356594899,1742760638072,-150.0,0.00013505,2]
[356594900,1742760638082,-2264.0,0.00013505,2]
[356594901,1742760638092,-915.85933335,0.00013505,2]
[356594905,1742760640358,-426.72429468,0.00013505,2]
[356594906,1742760640370,-572.41637197,0.00013505,2]
[356594907,1742760640379,-1057.38053489,0.00013598,2]
[356594908,1742760640390,-500.0,0.00013673,2]
[356594909,1742760640400,-500.0,0.00013673,2]
[356594910,1742760640409,-500.0,0.00013673,2]
[356594911,1742760640418,-420.83006296,0.00013673,2]
[356594912,1742760640430,-79.16993704,0.00013673,2]
[356594913,1742760640440,-500.0,0.00013673,2]
[356594914,1742760640449,-212.16236826,0.00013673,2]